bitfinex/quotes_BTCUSD_20251027
["timestamp","ask_amount","ask_price","bid_price","bid_amount"]
[1761533009437,5.24543948,114990.0,114980.0,0.6047623]
[1761533009652,4.8861084,114990.0,114980.0,0.6047623]
[1761533013444,4.87366291,114990.0,114980.0,0.59864709]
[1761533016917,4.87366291,114990.0,114980.0,0.65424709]
[1761533018085,4.87366291,114990.0,114980.0,0.6603623]
[1761533018292,5.36693257,114990.0,114980.0,0.09081901]
[1761533018531,5.36693257,114990.0,114980.0,0.24373901]
[1761533019254,5.36693257,114990.0,114980.0,0.24273901]
[1761533019613,5.36393257,114990.0,114980.0,0.24273901]
[1761533020113,5.37293257,114990.0,114980.0,0.24273901]
[1761533024843,5.05359107,114990.0,114980.0,0.24273901]
[1761533025208,5.37293257,114990.0,114980.0,0.24273901]
[1761533025953,5.05359107,114990.0,114980.0,0.24273901]
[1761533026080,5.37293257,114990.0,114980.0,0.24273901]
[1761533026691,5.05359107,114990.0,114980.0,0.24273901]
[1761533026912,5.37293257,114990.0,114980.0,0.24273901]
[1761533029956,5.37293257,114990.0,114980.0,0.08981901]
[1761533030109,5.37293257,114990.0,114980.0,0.24273901]
[1761533031444,5.05359107,114990.0,114980.0,0.24273901]
[1761533031647,5.37293257,114990.0,114980.0,0.24273901]
[1761533046549,5.05359107,114990.0,114980.0,0.24273901]
[1761533047050,5.37293257,114990.0,114980.0,0.24273901]
[1761533054451,5.05359107,114990.0,114980.0,0.24273901]
[1761533058833,5.37293257,114990.0,114980.0,0.24273901]
[1761533059796,5.05359107,114990.0,114980.0,0.24273901]
[1761533060211,5.37293257,114990.0,114980.0,0.24273901]
[1761533060923,5.05359107,114990.0,114980.0,0.24273901]
[1761533061647,4.87966291,114990.0,114980.0,0.4166823]
[1761533061870,5.05359107,114990.0,114980.0,0.4166823]
[1761533062018,4.87966291,114990.0,114980.0,0.4166823]
[1761533062233,5.05359107,114990.0,114980.0,0.4166823]
[1761533062897,4.87966291,114990.0,114980.0,0.4166823]
[1761533063124,4.87966291,114990.0,114980.0,0.7566823]
[1761533063370,4.87966291,114990.0,114980.0,0.81920275]
[1761533064269,4.87966291,114990.0,114980.0,0.7566823]
[1761533064424,4.87066291,114990.0,114980.0,0.7566823]
[1761533064618,4.87366291,114990.0,114980.0,0.7566823]
[1761533066470,4.87366291,114990.0,114980.0,0.99286458]
[1761533066672,4.87366291,114990.0,114980.0,0.9566823]
[1761533067456,4.87066291,114990.0,114980.0,0.9576823]
[1761533073205,4.86426032,114990.0,114980.0,0.9576823]
[1761533077942,4.86426032,114990.0,114980.0,1.0132423]
[1761533080852,5.22349131,114990.0,114980.0,1.0132423]
[1761533081205,5.22349131,114990.0,114980.0,0.6732423]
[1761533081570,4.86426032,114990.0,114980.0,0.6722423]
[1761533081777,5.22349131,114990.0,114980.0,0.6732423]
[1761533082164,4.86426032,114990.0,114980.0,0.6732423]
[1761533082365,4.86426032,114990.0,114980.0,0.6722423]
[1761533083020,4.86726032,114990.0,114980.0,0.6722423]
[1761533085513,4.86726032,114990.0,114980.0,0.6166423]
[1761533085718,4.86726032,114990.0,114980.0,0.6722423]
[1761533086753,4.86726032,114990.0,114980.0,0.6166423]
[1761533087099,4.86726032,114990.0,114980.0,0.6722423]
[1761533089297,4.86726032,114990.0,114980.0,0.69833174]
[1761533089500,4.86726032,114990.0,114980.0,0.44273174]
[1761533089761,5.22649131,114990.0,114980.0,0.4722423]
[1761533091526,4.86726032,114990.0,114980.0,0.4722423]
[1761533094302,4.86726032,114990.0,114980.0,0.4732423]
[1761533094665,4.86426032,114990.0,114980.0,0.4732423]
[1761533097868,4.86426032,114990.0,114980.0,0.83247329]
[1761533098967,4.86426032,114990.0,114980.0,0.85856368]
[1761533099375,4.86426032,114990.0,114980.0,0.56185314]
[1761533099531,4.86426032,114990.0,114980.0,0.85856368]
[1761533100243,4.86426032,114990.0,114980.0,0.49933269]
[1761533102542,4.86426032,114990.0,114980.0,0.85856368]
[1761533102959,4.86426032,114990.0,114980.0,0.92108413]
[1761533105052,4.86426032,114990.0,114980.0,1.49726641]
[1761533108515,4.86426032,114990.0,114980.0,1.43474596]
[1761533110106,4.86426032,114990.0,114980.0,1.49720678]
[1761533112628,4.86426032,114990.0,114980.0,1.34436678]
[1761533112825,4.86426032,114990.0,114980.0,1.49720678]
[1761533113326,4.86426032,114990.0,114980.0,1.13797579]
[1761533113525,4.86426032,114990.0,114980.0,1.49720678]
[1761533116162,4.86426032,114990.0,114980.0,1.13797579]
[1761533116367,4.86426032,114990.0,114980.0,1.49720678]
[1761533124405,4.86426032,114990.0,114980.0,1.28876678]
[1761533124589,4.86426032,114990.0,114980.0,1.49720678]
[1761533129171,4.86426032,114990.0,114980.0,1.13797579]
[1761533129483,4.86426032,114990.0,114980.0,1.49720678]
[1761533130154,4.86426032,114990.0,114980.0,1.44156678]
[1761533130353,4.86426032,114990.0,114980.0,1.49716678]
[1761533132176,4.86426032,114990.0,114980.0,1.43466596]
[1761533135674,4.86426032,114990.0,114980.0,1.07543497]
[1761533136008,4.86426032,114990.0,114980.0,1.43466596]
[1761533136930,4.86426032,114990.0,114980.0,1.51279146]
[1761533137277,4.86426032,114990.0,114980.0,1.43466596]
[1761533139917,4.86426032,114990.0,114980.0,1.39468723]
[1761533140271,4.86426032,114990.0,114980.0,1.07543497]
[1761533140714,4.86426032,114990.0,114980.0,1.39468723]
[1761533142099,4.86426032,114990.0,114980.0,1.47281273]
[1761533145948,4.86426032,114990.0,114980.0,1.15356047]
[1761533146161,4.86426032,114990.0,114980.0,1.47281273]
[1761533147461,4.86426032,114990.0,114980.0,1.15356047]
[1761533147830,4.86426032,114990.0,114980.0,1.47281273]
[1761533150677,4.86426032,114990.0,114980.0,0.94516047]
[1761533150878,4.86426032,114990.0,114980.0,1.15356047]
[1761533151051,4.86426032,114990.0,114980.0,1.47281273]
[1761533152039,4.86426032,114990.0,114980.0,0.90897819]
[1761533152399,4.86426032,114990.0,114980.0,1.10182542]
[1761533153973,5.03818848,114990.0,114980.0,0.17948213]
[1761533154167,4.86426032,114990.0,114980.0,0.4175623]
[1761533156068,5.03818848,114990.0,114980.0,0.001]
[1761533156273,5.35744074,114990.0,114980.0,0.001]
[1761533156468,5.06428368,114990.0,114980.0,0.001]
[1761533157304,5.06728368,114990.0,114980.0,0.001]
[1761533157804,0.17394329,114980.0,114970.0,0.32675813]
[1761533158044,0.17394329,114980.0,114970.0,0.41657714]
[1761533158933,5.06728368,114990.0,114970.0,0.41657714]
[1761533159140,0.17394329,114980.0,114970.0,0.41757714]
[1761533160180,0.17394329,114980.0,114970.0,0.24261901]
[1761533160693,0.17394329,114980.0,114970.0,0.24361901]
[1761533161210,0.17394329,114980.0,114970.0,0.24261901]
[1761533161366,0.17394329,114980.0,114970.0,0.24361901]
[1761533162561,0.17394329,114980.0,114970.0,0.41757743]
[1761533166820,0.17394329,114980.0,114970.0,0.24361901]
[1761533167059,0.49319555,114980.0,114970.0,0.24361901]
[1761533167573,0.49057668,114980.0,114970.0,0.24361901]
[1761533167807,0.49057668,114980.0,114970.0,0.1528]
[1761533168031,0.17395842,114970.0,114960.0,4.87e-05]
[1761533168246,0.49321068,114970.0,114960.0,0.1528487]
[1761533168561,0.64601068,114970.0,114960.0,4.87e-05]
[1761533168788,0.67211242,114970.0,114960.0,4.87e-05]
[1761533170530,0.67811242,114970.0,114960.0,4.87e-05]
[1761533173677,0.75548578,114970.0,114960.0,4.87e-05]
[1761533173992,0.67811242,114970.0,114960.0,4.87e-05]
[1761533175777,0.35886016,114970.0,114960.0,4.87e-05]
[1761533176011,0.67811242,114970.0,114960.0,4.87e-05]
[1761533176228,0.67211242,114970.0,114960.0,4.87e-05]
[1761533176395,0.67811242,114970.0,114960.0,4.87e-05]
[1761533176783,0.20606016,114970.0,114960.0,4.87e-05]
[1761533176981,0.67815242,114970.0,114960.0,4.87e-05]
[1761533186234,0.35890016,114970.0,114960.0,4.87e-05]
[1761533186448,0.67815242,114970.0,114960.0,4.87e-05]
[1761533187383,0.35890016,114970.0,114960.0,4.87e-05]
[1761533187588,0.67815242,114970.0,114960.0,4.87e-05]
[1761533189246,0.20606016,114970.0,114960.0,4.87e-05]
[1761533189474,0.006,114970.0,114960.0,0.41668126]
[1761533189680,0.006,114970.0,114960.0,1.10203174]
[1761533189931,0.006,114970.0,114960.0,1.30203174]
[1761533190352,4.86426032,114990.0,114980.0,0.17394329]
[1761533190554,4.86426032,114990.0,114980.0,0.4722423]
[1761533191046,4.86426032,114990.0,114980.0,0.49833509]
[1761533192768,4.86426032,114990.0,114980.0,0.50133509]
[1761533194849,5.03818848,114990.0,114980.0,0.3273918]
[1761533195455,4.86426032,114990.0,114980.0,0.84133509]
[1761533195655,4.86426032,114990.0,114980.0,1.56058735]
[1761533197014,4.86426032,114990.0,114980.0,1.53449456]
[1761533197421,4.86426032,114990.0,114980.0,1.57067684]
[1761533198661,4.86426032,114990.0,114980.0,1.56867684]
[1761533198883,4.86426032,114990.0,114980.0,1.57667684]
[1761533199853,4.86426032,114990.0,114980.0,1.6027638]
[1761533201786,4.86426032,114990.0,114980.0,2.00162204]
[1761533204938,4.86426032,114990.0,114980.0,1.64256679]
[1761533206644,4.86426032,114990.0,114980.0,1.28351154]
[1761533206856,4.86426032,114990.0,114980.0,1.64256679]
[1761533207620,4.86426032,114990.0,114980.0,1.28351154]
[1761533207873,4.86426032,114990.0,114980.0,1.61647983]
[1761533208983,4.86426032,114990.0,114980.0,2.01162203]
[1761533209356,4.86426032,114990.0,114980.0,3.34666703]
[1761533209905,4.86426032,114990.0,114980.0,2.63464803]
[1761533210258,4.86426032,114990.0,114980.0,2.63364803]
[1761533210650,4.86426032,114990.0,114980.0,2.63564803]
[1761533211264,4.86426032,114990.0,114980.0,2.62764803]
[1761533211467,4.86426032,114990.0,114980.0,2.63564803]
[1761533217131,4.86426032,114990.0,114980.0,2.35563003]
[1761533217336,4.86426032,114990.0,114980.0,2.26412903]
[1761533218353,4.86426032,114990.0,114980.0,2.32670176]
[1761533220388,4.86426032,114990.0,114980.0,1.71613951]
[1761533220587,4.86426032,114990.0,114980.0,2.19425276]
[1761533221209,4.86426032,114990.0,114980.0,2.36805276]
[1761533221833,4.86426032,114990.0,114980.0,1.64994226]
[1761533222048,4.86426032,114990.0,114980.0,2.36805276]
[1761533223823,4.86426032,114990.0,114980.0,2.24899476]
[1761533225232,4.86426032,114990.0,114980.0,1.49765952]
[1761533225433,4.86426032,114990.0,114980.0,1.34704427]
[1761533225654,4.86426032,114990.0,114980.0,1.70609952]
[1761533226216,4.86426032,114990.0,114980.0,1.70409952]
[1761533226686,4.86426032,114990.0,114980.0,1.70609952]
[1761533226832,4.86426032,114990.0,114980.0,1.67201256]
[1761533227242,4.86426032,114990.0,114980.0,1.67601256]
[1761533227473,4.86426032,114990.0,114980.0,1.67201256]
[1761533227799,4.86426032,114990.0,114980.0,1.52017256]
[1761533227968,4.86426032,114990.0,114980.0,1.67101256]
[1761533228187,4.86426032,114990.0,114980.0,1.67201256]
[1761533232535,4.86426032,114990.0,114980.0,1.63583028]
[1761533235697,4.86426032,114990.0,114980.0,1.27677503]
[1761533235940,4.86426032,114990.0,114980.0,1.63583028]
[1761533237417,4.86426032,114990.0,114980.0,1.43583028]
[1761533237616,4.86426032,114990.0,114980.0,0.53673503]
[1761533237817,5.22331557,114990.0,114980.0,0.3213623]
[1761533238068,4.86426032,114990.0,114980.0,0.3213623]
[1761533238289,4.86426032,114990.0,114980.0,0.4741623]
[1761533238558,5.22331557,114990.0,114980.0,0.3203623]
[1761533238746,5.22331557,114990.0,114980.0,0.8141623]
[1761533239365,5.39724373,114990.0,114980.0,0.002]
[1761533239585,5.75629898,114990.0,114980.0,0.001]
[1761533239820,5.75829898,114990.0,114980.0,0.15384]
[1761533240026,5.39924373,114990.0,114980.0,0.15284]
[1761533240337,5.39924373,114990.0,114980.0,0.15384]
[1761533240557,5.75829898,114990.0,114980.0,0.15384]
[1761533240758,5.39924373,114990.0,114980.0,0.15284]
[1761533240987,5.39724373,114990.0,114980.0,0.15284]
[1761533241553,5.40224373,114990.0,114980.0,0.15284]
[1761533242948,5.76129898,114990.0,114980.0,0.15284]
[1761533243306,5.75629898,114990.0,114980.0,0.15284]
[1761533243505,5.76429898,114990.0,114980.0,0.15284]
[1761533243718,0.17394329,114980.0,114970.0,0.0556]
[1761533243906,0.17394329,114980.0,114960.0,4.87e-05]
[1761533243907,0.17395842,114970.0,114960.0,4.87e-05]
[1761533244101,0.53301367,114970.0,114960.0,0.1528887]
[1761533246444,0.54101367,114970.0,114960.0,0.1528887]
[1761533247228,0.53301367,114970.0,114960.0,0.1528887]
[1761533247624,0.54401367,114970.0,114960.0,0.1528887]
[1761533247931,0.54401367,114970.0,114960.0,4.87e-05]
[1761533250393,0.90306892,114970.0,114960.0,4.87e-05]
[1761533251383,0.54401367,114970.0,114960.0,4.87e-05]
[1761533251968,0.90306892,114970.0,114960.0,4.87e-05]
[1761533252572,0.54401367,114970.0,114960.0,4.87e-05]
[1761533252837,0.90306892,114970.0,114960.0,4.87e-05]
[1761533253011,1.08270694,114970.0,114960.0,4.87e-05]
[1761533253235,1.45888922,114970.0,114960.0,4.87e-05]
[1761533253398,1.46888921,114970.0,114960.0,4.87e-05]
[1761533253604,1.49499492,114970.0,114960.0,4.87e-05]
[1761533254030,1.55059492,114970.0,114960.0,4.87e-05]
[1761533254622,1.55159492,114970.0,114960.0,4.87e-05]
[1761533254989,1.54059492,114970.0,114960.0,4.87e-05]
[1761533255537,1.55159492,114970.0,114960.0,4.87e-05]
[1761533257448,1.64311492,114970.0,114960.0,4.87e-05]
[1761533261811,1.56440044,114970.0,114960.0,4.87e-05]
[1761533264067,1.24470243,114970.0,114960.0,4.87e-05]
[1761533265705,1.09928342,114970.0,114960.0,4.87e-05]
[1761533265930,0.99776343,114970.0,114960.0,4.87e-05]
[1761533266163,1.15064343,114970.0,114960.0,4.87e-05]
[1761533266669,1.11446115,114970.0,114960.0,4.87e-05]
[1761533266879,0.84565643,114970.0,114960.0,4.87e-05]
[1761533267101,0.99853643,114970.0,114960.0,4.87e-05]
[1761533267909,0.18595842,114970.0,114960.0,4.87e-05]
[1761533268138,0.18595842,114970.0,114960.0,0.17402225]
[1761533268334,0.18595842,114970.0,114960.0,4.87e-05]
[1761533268735,0.17395842,114970.0,114960.0,4.87e-05]
[1761533270515,0.49365643,114970.0,114960.0,4.87e-05]
[1761533271644,0.17395842,114970.0,114960.0,4.87e-05]
[1761533271800,0.49365643,114970.0,114960.0,4.87e-05]
[1761533272984,0.17395842,114970.0,114960.0,4.87e-05]
[1761533273127,0.49365643,114970.0,114960.0,4.87e-05]
[1761533280933,0.17395842,114970.0,114960.0,4.87e-05]
[1761533281145,0.49365643,114970.0,114960.0,4.87e-05]
[1761533281898,0.17395842,114970.0,114960.0,4.87e-05]
[1761533282117,0.49365643,114970.0,114960.0,4.87e-05]
[1761533290802,0.80307541,114970.0,114960.0,4.87e-05]
[1761533290978,1.5904757,114970.0,114960.0,4.87e-05]
[1761533291183,1.6747497,114970.0,114960.0,4.87e-05]
[1761533291586,1.14657169,114970.0,114960.0,4.87e-05]
[1761533291801,1.33641768,114970.0,114960.0,4.87e-05]
[1761533292023,1.11793769,114970.0,114960.0,4.87e-05]
[1761533292198,1.28077768,114970.0,114960.0,4.87e-05]
[1761533292409,1.27677769,114970.0,114960.0,4.87e-05]
[1761533292586,1.28677768,114970.0,114960.0,4.87e-05]
[1761533293392,1.28077768,114970.0,114960.0,4.87e-05]
[1761533293773,1.28677768,114970.0,114960.0,4.87e-05]
[1761533293989,1.28777768,114970.0,114960.0,4.87e-05]
[1761533294188,1.62611816,114970.0,114960.0,4.87e-05]
[1761533294574,1.64938735,114970.0,114960.0,4.87e-05]
[1761533295001,1.67916428,114970.0,114960.0,4.87e-05]
[1761533296135,2.17916428,114970.0,114960.0,4.87e-05]
[1761533298141,2.20527392,114970.0,114960.0,4.87e-05]
[1761533298338,2.18200473,114970.0,114960.0,4.87e-05]
[1761533300798,3.28740897,114970.0,114960.0,4.87e-05]
[1761533301004,3.32216707,114970.0,114960.0,4.87e-05]
[1761533301600,3.31516707,114970.0,114960.0,4.87e-05]
[1761533302006,3.31616707,114970.0,114960.0,4.87e-05]
[1761533302433,0.17407955,114890.0,114880.0,0.06434473]
[1761533302755,0.17416413,114890.0,114880.0,0.32825844]
[1761533303337,8.458e-05,114890.0,114880.0,0.32825844]
[1761533304089,8.458e-05,114890.0,114880.0,0.34125844]
[1761533304629,8.458e-05,114890.0,114880.0,0.34225844]
[1761533305673,0.17416413,114890.0,114880.0,0.34225844]
[1761533305905,0.17416413,114890.0,114880.0,0.15945901]
[1761533306073,0.17416413,114890.0,114880.0,0.33355371]
[1761533306878,0.17416413,114890.0,114880.0,0.32055371]
[1761533307255,0.00108458,114890.0,114880.0,0.33655371]
[1761533307449,8.458e-05,114890.0,114880.0,0.32055371]
[1761533307671,8.458e-05,114890.0,114880.0,0.31955371]
[1761533307875,8.458e-05,114890.0,114880.0,0.33355371]
[1761533308527,8.458e-05,114890.0,114880.0,0.33255371]
[1761533308528,0.17416413,114890.0,114880.0,0.33255371]
[1761533308704,0.17416413,114890.0,114880.0,0.33355371]
[1761533308909,8.458e-05,114890.0,114880.0,0.33355371]
[1761533309818,0.17416413,114890.0,114880.0,0.33355371]
[1761533311019,8.458e-05,114890.0,114880.0,0.33355371]
[1761533311809,8.458e-05,114890.0,114880.0,0.65325172]
[1761533312231,8.458e-05,114890.0,114880.0,0.15945901]
[1761533312450,8.458e-05,114890.0,114880.0,0.33355371]
[1761533314516,8.458e-05,114890.0,114880.0,0.85325172]
[1761533315689,8.458e-05,114890.0,114880.0,0.33355371]
[1761533315916,8.458e-05,114890.0,114880.0,0.35966663]
[1761533316464,8.458e-05,114890.0,114880.0,0.33355371]
[1761533317454,8.458e-05,114890.0,114880.0,0.014]
[1761533317455,0.49386214,114890.0,114880.0,0.014]
[1761533317613,0.17416413,114890.0,114880.0,0.16692]
[1761533318649,8.458e-05,114890.0,114880.0,0.3410147]
[1761533318862,0.17416413,114890.0,114880.0,0.3410147]
[1761533319179,0.17416413,114890.0,114880.0,0.3400147]
[1761533319475,0.17416413,114890.0,114880.0,0.3270147]
[1761533319682,0.17416413,114890.0,114880.0,0.3400147]
[1761533319926,8.458e-05,114890.0,114880.0,0.41683371]
[1761533320101,0.17416413,114890.0,114880.0,0.41683371]
[1761533320301,0.17416413,114890.0,114880.0,0.25673901]
[1761533320983,0.17416413,114890.0,114880.0,0.25573901]
[1761533321210,0.17416413,114890.0,114880.0,0.25673901]
[1761533322045,0.17416413,114890.0,114880.0,0.43083371]
[1761533322216,0.17416413,114890.0,114880.0,0.25673901]
[1761533322591,0.17416413,114890.0,114880.0,0.43083371]
[1761533323030,0.17416413,114890.0,114880.0,0.25673901]
[1761533323946,0.17416413,114890.0,114880.0,0.43083371]
[1761533324778,0.17416413,114890.0,114880.0,0.25673901]
[1761533325824,0.17416413,114890.0,114880.0,0.43083371]
[1761533326379,0.17416413,114890.0,114880.0,0.25673901]
[1761533326501,0.17416413,114890.0,114880.0,0.43083371]
[1761533327298,8.458e-05,114890.0,114880.0,0.43083371]
[1761533327499,0.17416413,114890.0,114880.0,0.43083371]
[1761533327937,0.17416413,114890.0,114880.0,0.79071932]
[1761533328141,8.458e-05,114890.0,114880.0,0.79071932]
[1761533329515,0.17416413,114890.0,114880.0,0.79071932]
[1761533329717,0.17416413,114890.0,114880.0,0.43083371]
[1761533330282,8.458e-05,114890.0,114880.0,0.43083371]
[1761533330487,0.17416413,114890.0,114880.0,0.43083371]
[1761533331277,8.458e-05,114890.0,114880.0,0.43083371]
[1761533332090,0.17416413,114890.0,114880.0,0.43083371]
[1761533332274,0.17416413,114890.0,114880.0,0.27791371]
[1761533332483,0.17416413,114890.0,114880.0,0.43091371]
[1761533332914,0.17416413,114890.0,114880.0,0.25681901]
[1761533333274,0.17416413,114890.0,114880.0,0.43091371]
[1761533335134,0.53404974,114890.0,114880.0,0.25681901]
[1761533335525,0.53404974,114890.0,114880.0,0.167]
[1761533336305,0.53404974,114890.0,114880.0,0.154]
[1761533336473,0.53404974,114890.0,114880.0,0.162]
[1761533336680,0.17416413,114890.0,114880.0,0.162]
[1761533336975,0.17416413,114890.0,114880.0,0.3370947]
[1761533337277,8.458e-05,114890.0,114880.0,0.42591371]
[1761533337504,8.458e-05,114890.0,114880.0,0.78579932]
[1761533337620,8.458e-05,114890.0,114880.0,0.42591371]
[1761533338025,8.458e-05,114890.0,114880.0,0.78579932]
[1761533338449,8.458e-05,114890.0,114880.0,0.42591371]
[1761533339129,8.458e-05,114890.0,114880.0,0.78579932]
[1761533339569,8.458e-05,114890.0,114880.0,0.42591371]
[1761533339776,8.458e-05,114890.0,114880.0,0.78579932]
[1761533339990,8.458e-05,114890.0,114880.0,0.78334311]
[1761533340828,8.458e-05,114890.0,114880.0,0.4234575]
[1761533341371,0.17416413,114890.0,114880.0,0.4234575]
[1761533342851,8.458e-05,114890.0,114880.0,0.4234575]
[1761533343071,8.458e-05,114890.0,114880.0,0.78334311]
[1761533344695,8.458e-05,114890.0,114880.0,0.4234575]
[1761533345097,0.17416413,114890.0,114880.0,0.4234575]
[1761533345308,0.53404974,114890.0,114880.0,0.09881901]
[1761533345509,0.53404974,114890.0,114880.0,0.25181901]
[1761533348760,0.53404974,114890.0,114880.0,0.009]
[1761533350189,0.1740947,114880.0,114870.0,0.153]
[1761533350396,0.53398031,114880.0,114870.0,0.153]
[1761533352306,0.53398031,114880.0,114860.0,0.00325337]
[1761533352307,0.17410986,114870.0,114860.0,0.00325337]
[1761533352540,1.04692108,114870.0,114860.0,0.00325337]
[1761533352965,1.51292237,114870.0,114860.0,0.00325337]
[1761533353259,1.52292236,114870.0,114860.0,0.00325337]
[1761533353465,1.51292237,114870.0,114860.0,0.00325337]
[1761533353662,1.52292236,114870.0,114860.0,0.00325337]
[1761533353864,1.52292236,114870.0,114860.0,0.00925337]
[1761533353865,1.51292237,114870.0,114860.0,0.00925337]
[1761533354072,1.52292236,114870.0,114860.0,0.00325337]
[1761533354225,1.51292237,114870.0,114860.0,0.00325337]
[1761533354412,0.51410986,114870.0,114860.0,0.00325337]
[1761533354615,1.03711546,114870.0,114860.0,0.00325337]
[1761533354817,1.39700107,114870.0,114860.0,0.00325337]
[1761533355053,1.38700108,114870.0,114860.0,0.00325337]
[1761533355267,1.39700107,114870.0,114860.0,0.00325337]
[1761533356172,1.39700107,114870.0,114860.0,0.00625337]
[1761533357072,1.38700108,114870.0,114860.0,0.00625337]
[1761533360474,1.47682009,114870.0,114860.0,0.00625337]
[1761533362428,0.75704887,114870.0,114860.0,0.00625337]
[1761533362653,1.47682009,114870.0,114860.0,0.00625337]
[1761533364837,0.75704887,114870.0,114860.0,0.00625337]
[1761533365083,1.47682009,114870.0,114860.0,0.00625337]
[1761533365868,1.51300237,114870.0,114860.0,0.00625337]
[1761533367285,1.47682009,114870.0,114860.0,0.00625337]
[1761533374192,1.47185601,114870.0,114860.0,0.00625337]
[1761533374845,1.228917,114870.0,114860.0,0.00625337]
[1761533375046,1.381997,114870.0,114860.0,0.00625337]
[1761533383721,0.98235007,114870.0,114860.0,0.00625337]
[1761533384330,0.66222578,114870.0,114860.0,0.00625337]
[1761533384533,0.16914578,114870.0,114860.0,0.00625337]
[1761533384732,0.17410986,114870.0,114860.0,0.18037839]
[1761533384956,0.1740947,114880.0,114870.0,0.17410986]
[1761533385160,0.1740947,114880.0,114860.0,0.4232374]
[1761533385752,0.1740947,114880.0,114860.0,0.4202374]
[1761533386827,0.1740947,114880.0,114870.0,0.006]
[1761533387950,0.1740947,114880.0,114860.0,0.4202374]
[1761533388306,0.75139239,114890.0,114870.0,0.17410986]
[1761533388644,0.1828681,114890.0,114880.0,0.1740947]
[1761533388824,8.458e-05,114890.0,114880.0,0.1740947]
[1761533389043,0.17416413,114890.0,114880.0,0.1740947]
[1761533390776,0.17416413,114890.0,114870.0,0.27285172]
[1761533391074,0.17416413,114890.0,114880.0,0.1740947]
[1761533392468,8.458e-05,114890.0,114880.0,0.1740947]
[1761533393506,0.17416413,114890.0,114880.0,0.1740947]
[1761533393884,0.17416413,114890.0,114880.0,0.3270947]
[1761533396382,0.49428842,114890.0,114880.0,0.3270947]
[1761533397114,0.17416413,114890.0,114880.0,0.3270947]
[1761533397471,0.1740994,114880.0,114870.0,0.17410986]
[1761533397645,0.1740994,114880.0,114870.0,0.32710986]
[1761533397646,0.49422369,114880.0,114870.0,0.32710986]
[1761533397895,0.32012429,114880.0,114870.0,0.32710986]
[1761533398069,0.49421899,114880.0,114870.0,0.32710986]
[1761533398640,0.1740947,114880.0,114870.0,0.32710986]
[1761533399014,0.1740947,114880.0,114870.0,0.33010986]
[1761533399417,0.49421899,114880.0,114870.0,0.33010986]
[1761533400841,0.49421899,114880.0,114870.0,0.156]
[1761533401265,0.49421899,114880.0,114870.0,0.003]
[1761533401809,0.64721899,114880.0,114870.0,0.003]
[1761533402371,0.17410986,114870.0,114860.0,0.15625337]
[1761533402579,0.49423415,114870.0,114860.0,0.00325337]
[1761533404513,0.17410986,114870.0,114860.0,0.17737839]
[1761533404754,0.17410986,114870.0,114860.0,0.00325337]
[1761533404956,0.32012429,114870.0,114860.0,0.17737839]
[1761533405109,0.49423415,114870.0,114860.0,0.18037839]
[1761533405533,0.49423415,114870.0,114860.0,0.00625337]
[1761533410501,0.49423415,114870.0,114860.0,0.17412502]
[1761533411226,0.99423415,114870.0,114860.0,0.17412502]
[1761533411753,0.67410986,114870.0,114860.0,0.17412502]
[1761533412149,0.99423415,114870.0,114860.0,0.17412502]
[1761533412916,0.5,114870.0,114860.0,0.17412502]
[1761533413055,0.5,114870.0,114860.0,0.26394403]
[1761533420461,0.17412502,114860.0,114850.0,0.22601469]
[1761533420611,0.49424931,114860.0,114850.0,0.22147303]
[1761533420827,0.49424931,114860.0,114850.0,0.37447355]
[1761533421686,0.49424931,114860.0,114850.0,0.37747355]
[1761533423603,0.49424931,114860.0,114850.0,0.20333337]
[1761533423920,0.49424931,114860.0,114850.0,0.37747355]
[1761533424299,0.49424931,114860.0,114850.0,0.20333337]
[1761533424503,0.49424931,114860.0,114850.0,0.37747355]
[1761533425734,0.49424931,114860.0,114850.0,0.20333337]
[1761533426091,0.49424931,114860.0,114850.0,0.37768101]
[1761533426498,0.17412502,114860.0,114850.0,0.37768101]
[1761533428153,0.49424931,114860.0,114850.0,0.20354083]
[1761533428334,0.49424931,114860.0,114850.0,0.05054083]
[1761533428535,0.49424931,114860.0,114850.0,0.20354083]
[1761533428835,0.17412502,114860.0,114850.0,0.20354083]
[1761533429031,0.17412502,114860.0,114850.0,0.20054083]
[1761533429212,0.49424931,114860.0,114850.0,0.20054083]
[1761533429415,0.49424931,114860.0,114850.0,0.20354083]
[1761533430233,0.17412502,114860.0,114850.0,0.20354083]
[1761533430435,0.49424931,114860.0,114850.0,0.20354083]
[1761533430953,0.49424931,114860.0,114850.0,0.15620746]
[1761533431104,0.49424931,114860.0,114850.0,0.15320746]
[1761533432634,0.92406832,114860.0,114850.0,0.00020746]
[1761533433005,0.83424931,114860.0,114850.0,0.00020746]
[1761533438425,0.86037806,114860.0,114850.0,0.00020746]
[1761533440502,0.54025377,114860.0,114850.0,0.00020746]
[1761533440740,0.17412502,114860.0,114850.0,0.00020746]
[1761533445057,0.7002354,114870.0,114850.0,0.32734764]
[1761533445219,0.67410986,114870.0,114860.0,0.17412502]
[1761533445819,0.5,114870.0,114860.0,0.62393562]
[1761533446225,0.67410986,114870.0,114860.0,0.26394403]
[1761533446833,0.5,114870.0,114860.0,0.62393562]
[1761533447803,0.5,114870.0,114860.0,0.62693562]
[1761533447937,0.5,114870.0,114860.0,0.62393562]
[1761533448138,0.5,114870.0,114860.0,0.63293562]
[1761533448379,0.5,114870.0,114860.0,0.63393562]
[1761533449151,0.5,114870.0,114860.0,0.27394403]
[1761533449399,0.5,114870.0,114860.0,0.63393562]
[1761533449594,0.67410986,114870.0,114860.0,0.27394403]
[1761533449794,0.5,114870.0,114860.0,0.27394403]
[1761533451803,0.5,114870.0,114860.0,0.63393562]
[1761533459029,0.67410986,114870.0,114860.0,0.63393562]
[1761533459230,0.67410986,114870.0,114860.0,0.27394403]
[1761533460303,0.5,114870.0,114860.0,0.27394403]
[1761533460792,0.5,114870.0,114860.0,0.63393562]
[1761533461904,0.5,114870.0,114860.0,0.97393562]
[1761533462129,0.5,114870.0,114860.0,1.57010949]
[1761533462337,0.5,114870.0,114860.0,1.63268222]
[1761533462676,0.5,114870.0,114860.0,1.64268221]
[1761533463086,0.5,114870.0,114860.0,1.28269062]
[1761533463284,0.5,114870.0,114860.0,1.66779322]
[1761533463510,0.5,114870.0,114860.0,1.65879322]
[1761533463900,0.501,114870.0,114860.0,2.18523622]
[1761533464076,0.501,114870.0,114860.0,1.90838922]
[1761533466869,0.501,114870.0,114860.0,1.18840604]
[1761533467108,0.501,114870.0,114860.0,1.90838922]
[1761533471188,0.05681912,114870.0,114860.0,1.84581649]
[1761533471390,1e-08,114870.0,114860.0,1.84581649]
[1761533472733,1e-08,114870.0,114860.0,1.85581648]
[1761533472936,1e-08,114870.0,114860.0,2.2783808]
[1761533473137,1e-08,114870.0,114860.0,1.91838921]
[1761533473343,1e-08,114870.0,114860.0,1.85581648]
[1761533473543,8.458e-05,114890.0,114860.0,2.21580807]
[1761533473748,8.458e-05,114890.0,114880.0,2.93187888]
[1761533473989,8.458e-05,114890.0,114880.0,3.19774116]
[1761533474390,8.458e-05,114890.0,114880.0,3.2238461]
[1761533474954,8.458e-05,114890.0,114880.0,3.28614339]
[1761533475308,8.458e-05,114890.0,114880.0,3.2258461]
[1761533476289,8.458e-05,114890.0,114880.0,3.2922505]